bitfinex-derivatives/quotes_ETHF0:USTF0_20250530
["timestamp","ask_amount","ask_price","bid_price","bid_amount"]
[1748617281079,0.76872,2601.0,2600.9,0.00577501]
[1748617281279,5.21122,2601.0,2600.9,0.77452501]
[1748617281480,5.21122,2601.0,2600.9,0.00577501]
[1748617281988,4.4425,2601.0,2600.9,0.77452501]
[1748617282181,5.21122,2601.0,2600.9,0.77452501]
[1748617282483,1.2347,2601.0,2600.9,0.77452501]
[1748617282679,2.00342,2601.0,2600.9,0.77452501]
[1748617283674,1.2347,2601.0,2600.9,0.77452501]
[1748617284382,2.00342,2601.0,2600.9,0.77452501]
[1748617285280,2.00342,2601.0,2600.9,0.00577501]
[1748617285480,9.4425,2601.0,2600.0,3.2078]
[1748617285678,0.76899,2600.1,2600.0,5.1976]
[1748617285877,3.97679,2600.1,2600.0,1.3397]
[1748617286183,0.76902,2600.0,2599.9,4.098]
[1748617286383,3.2078,2600.1,2599.9,4.86704]
[1748617286587,1.3021,2600.4,2599.9,4.098]
[1748617286776,3.2078,2600.8,2600.0,2.6089]
[1748617287077,0.76891,2600.4,2600.2,0.76893]
[1748617287281,3.2078,2600.5,2600.1,0.76896]
[1748617287472,0.76899,2600.1,2600.0,1.3397]
[1748617287675,0.76897,2600.2,2600.0,1.3397]
[1748617287879,1.39366,2600.3,2600.0,1.3397]
[1748617288078,0.76897,2600.2,2600.1,0.76897]
[1748617288278,3.97678,2600.2,2600.1,0.76897]
[1748617288476,4.60568,2600.2,2600.1,0.76897]
[1748617289286,0.76899,2600.1,2600.0,0.769]
[1748617289482,5.0905,2600.2,2599.8,5.4039]
[1748617289687,0.76902,2600.1,2600.0,0.769]
[1748617290189,5.85948,2600.2,2600.1,0.76899]
[1748617290684,5.0905,2600.2,2600.1,0.76899]
[1748617290879,3.2078,2600.2,2600.1,0.76899]
[1748617292384,3.8665,2600.6,2600.5,0.76887]
[1748617292782,3.2078,2600.9,2600.6,1.92209]
[1748617293081,3.2078,2600.9,2600.8,0.76878]
[1748617294283,3.97655,2600.9,2600.8,1.234]
[1748617294485,3.97655,2600.9,2600.8,2.00278]
[1748617296088,0.76881,2600.8,2600.7,0.76879]
[1748617296590,0.76884,2600.7,2600.6,0.7688]
[1748617296888,0.7688,2600.8,2600.7,0.76879]
[1748617297988,3.97657,2600.9,2600.8,0.76878]
[1748617298285,3.2078,2600.9,2600.8,0.76878]
[1748617298995,3.2078,2600.9,2600.8,2.04288]
[1748617300289,3.2078,2600.9,2600.8,0.76878]
[1748617301193,3.97655,2600.9,2600.8,2.01268]
[1748617302495,3.2078,2600.9,2600.8,2.01268]
[1748617303190,3.2078,2600.9,2600.7,4.098]
[1748617303191,1.922,2600.8,2600.4,4.7607]
[1748617303388,0.76893,2600.4,2600.2,1.2722]
[1748617303583,3.2078,2600.5,2600.4,0.76886]
[1748617304595,3.97669,2600.5,2600.4,0.76886]
[1748617304891,3.2078,2600.5,2600.4,0.76886]
[1748617305092,1.8537,2600.7,2600.6,0.76884]
[1748617305294,2.62253,2600.7,2600.6,0.76884]
[1748617305895,0.76887,2600.6,2600.5,0.76884]
[1748617306112,0.76902,2600.1,2600.0,0.769]
[1748617306297,0.76902,2600.0,2599.9,7.3058]
[1748617306492,5.13009,2600.4,2600.0,0.76898]
[1748617306697,0.76902,2600.0,2599.9,3.97683]
[1748617306895,3.2078,2600.1,2599.7,0.00577501]
[1748617307095,3.2078,2600.1,2599.4,3.2078]
[1748617307096,0.76918,2599.5,2599.4,0.76916]
[1748617307295,0.76918,2599.5,2598.9,6.02135]
[1748617307296,3.2078,2599.5,2599.0,1.9905]
[1748617307699,3.2078,2599.5,2599.1,1.92322]
[1748617307994,3.2078,2599.5,2599.4,0.7692]
[1748617310196,0.6118,2600.3,2599.5,1.92292]
[1748617310395,1.2795,2600.3,2599.6,1.272]
[1748617310590,0.7691,2599.8,2599.7,0.76909]
[1748617310796,0.6677,2600.3,2599.8,1.92267]
[1748617311002,1.43665,2600.3,2600.2,0.76896]
[1748617311203,6.43665,2600.3,2600.2,0.76896]
[1748617311508,0.00577501,2600.5,2600.4,0.7689]
[1748617311711,0.63177501,2600.5,2600.4,0.7689]
[1748617311905,1.40064501,2600.5,2600.4,0.7689]
[1748617312209,8.87998501,2600.5,2600.2,0.76895]
[1748617312408,3.2078,2600.4,2599.8,5.4236]
[1748617312613,1.326,2600.3,2600.2,0.76893]
[1748617313113,3.97671,2600.4,2600.3,0.76893]
[1748617313310,3.2078,2600.4,2600.3,0.76893]
[1748617313709,0.00577501,2600.5,2600.4,0.7689]
[1748617313916,0.00577501,2600.5,2600.4,3.9767]
[1748617314308,5.01e-06,2600.5,2600.4,3.9767]
[1748617314507,5.01e-06,2600.5,2600.4,5.3103]
[1748617316719,0.76887501,2600.5,2600.4,2.1025]
[1748617316919,5.01e-06,2600.5,2600.4,2.1025]
[1748617320321,5.01e-06,2600.5,2600.4,5.3103]
[1748617321322,5.01e-06,2600.5,2600.4,10.3103]
[1748617323921,5.01e-06,2600.5,2600.4,9.4003]
[1748617325016,5.01e-06,2600.5,2600.4,5.3103]
[1748617327327,5.01e-06,2600.5,2600.4,10.9349]
[1748617330219,5.01e-06,2600.5,2600.4,15.0249]
[1748617330622,5.01e-06,2600.5,2600.4,15.0239]
[1748617332529,5.01e-06,2600.5,2600.4,10.0239]
[1748617335435,5.01e-06,2600.5,2600.4,5.9349]
[1748617335635,5.01e-06,2600.5,2600.4,10.0239]
[1748617335835,5.01e-06,2600.5,2600.4,5.9349]
[1748617336037,5.01e-06,2600.5,2600.4,10.0239]
[1748617337336,5.01e-06,2600.5,2600.1,3.8314]
[1748617337536,5.01e-06,2600.5,2600.4,0.7689]
[1748617337741,5.01e-06,2600.5,2600.4,3.9767]
[1748617339835,0.76887501,2600.5,2600.4,3.2078]
[1748617340143,0.7689,2600.4,2600.3,4.089]
[1748617340346,2.0509,2600.4,2600.3,4.089]
[1748617340939,2.0509,2600.4,2600.3,4.85793]
[1748617342442,1.282,2600.4,2600.1,3.2078]
[1748617342642,0.76896,2600.2,2600.1,3.97677]
[1748617343450,0.76896,2600.2,2600.1,3.2078]
[1748617343751,0.76899,2600.1,2600.0,4.85102]
[1748617343946,0.76899,2600.1,2600.0,4.082]
[1748617344138,0.76899,2600.1,2600.0,4.85102]
[1748617344344,0.76899,2600.1,2600.0,4.082]
[1748617344545,0.76899,2600.1,2600.0,4.85102]
[1748617344948,0.76899,2600.1,2599.5,3.22921]
[1748617344949,0.76923,2599.3,2599.2,0.00577501]
[1748617345948,2.06533,2599.3,2599.2,0.00577501]
[1748617346146,1.2961,2599.3,2599.2,0.77502501]
[1748617346348,1.2332,2599.4,2599.3,0.76923]
[1748617346745,1.2961,2599.7,2599.6,0.76914]
[1748617346952,0.7691,2599.8,2599.7,0.7691]
[1748617347147,0.76911,2599.7,2599.6,3.97692]
[1748617347346,2.06521,2599.7,2599.6,3.97694]
[1748617347541,1.2332,2599.9,2599.8,0.76908]
[1748617347748,0.1919,2600.1,2600.0,0.76902]
[1748617348051,0.1919,2600.1,2600.0,8.05882]
[1748617349145,0.1919,2600.1,2600.0,9.38572]
[1748617352748,2.53720501,2600.5,2600.0,9.38572]
[1748617352749,0.61120501,2600.5,2600.0,8.6167]
[1748617352948,5.01e-06,2600.5,2600.4,3.9767]
[1748617353157,5.01e-06,2600.5,2600.4,8.0597]
[1748617354756,5.01e-06,2600.5,2600.4,9.2931]
[1748617356645,5.01e-06,2600.5,2600.4,14.9236]
[1748617356848,5.01e-06,2600.5,2600.4,9.9236]
[1748617357048,5.01e-06,2600.5,2600.4,9.2931]
[1748617359350,5.01e-06,2600.5,2600.4,14.2931]
[1748617359549,5.01e-06,2600.5,2600.4,9.2931]
[1748617361058,5.01e-06,2600.5,2600.4,4.082]
[1748617361269,1.92226,2600.4,2599.7,7.2898]
[1748617361557,0.76908,2599.8,2599.7,3.2078]
[1748617361954,2.05753,2600.0,2599.9,0.76905]
[1748617362551,1.2885,2600.0,2599.9,0.76905]
[1748617362758,3.22895,2600.3,2599.7,3.2078]
[1748617362955,0.76911,2599.7,2599.4,3.2078]
[1748617363255,0.76917,2599.5,2599.4,3.2078]
[1748617363858,2.65977,2599.5,2599.4,3.2078]
[1748617365462,0.76921,2599.4,2599.3,0.76923]
[1748617365762,0.76921,2599.4,2599.2,0.77501501]
[1748617365763,0.7692,2599.4,2599.2,0.77501501]
[1748617366058,1.8906,2599.5,2599.3,0.76922]
[1748617366361,1.8906,2599.5,2599.2,0.00577501]
[1748617366762,1.8906,2599.5,2599.4,0.7692]
[1748617366963,0.6216,2599.5,2599.4,3.977]
[1748617367166,1.39077,2599.5,2599.4,3.977]
[1748617369459,1.39077,2599.5,2599.4,3.2078]
[1748617369859,1.39077,2599.5,2599.4,3.977]
[1748617370067,1.39077,2599.5,2599.4,3.2078]
[1748617370867,0.7692,2599.4,2599.3,1.2404]
[1748617371073,0.76923,2599.3,2599.2,0.00577501]
[1748617371263,10.22423,2599.3,2599.2,0.00577501]
[1748617371467,0.76943,2598.6,2598.5,8.6205]
[1748617371667,0.76952,2598.3,2598.2,3.2078]
[1748617371865,0.76955,2598.2,2598.1,4.083]
[1748617372370,0.76955,2598.2,2597.9,2.10510501]
[1748617372566,0.00577501,2598.4,2597.9,0.00577501]
[1748617372774,0.00577501,2598.4,2597.9,0.77540501]
[1748617372775,4.55327501,2598.4,2597.9,0.77540501]
[1748617373071,4.55327501,2598.4,2597.9,0.00577501]
[1748617373268,0.76952,2598.3,2598.0,0.76959]
[1748617373471,2.10922,2598.3,2598.0,0.76959]
[1748617373671,0.1924,2598.2,2598.0,0.76959]
[1748617374076,0.1924,2598.2,2597.9,1.23347501]
[1748617374374,0.1924,2598.2,2598.1,0.76958]
[1748617375176,0.1924,2598.2,2598.0,0.76961]
[1748617375371,1.3428,2598.1,2598.0,0.76961]
[1748617375873,0.1924,2598.2,2598.1,0.76958]
[1748617376079,0.00577501,2598.4,2598.3,0.76952]
[1748617376369,0.00577501,2598.4,2598.3,4.84852]
[1748617377187,7.9537,2599.4,2599.0,0.7693]
[1748617377373,0.76926,2599.2,2599.0,0.7693]
[1748617377880,1.3428,2599.1,2599.0,0.7693]
[1748617378383,0.64067501,2599.3,2598.9,3.2078]
[1748617378583,0.00577501,2599.3,2599.2,0.76925]
[1748617378886,0.76928,2599.1,2599.0,4.079]
[1748617379083,0.76931,2599.0,2598.9,3.2078]
[1748617379383,2.01471,2599.0,2598.9,3.2078]
[1748617379881,2.01471,2599.0,2598.2,1.92384]
[1748617379882,0.76952,2598.3,2598.2,3.2078]
[1748617380180,3.2078,2598.7,2598.4,0.76948]
[1748617380382,1.43844,2598.6,2598.4,0.76948]
[1748617380579,1.2454,2598.5,2598.4,0.76948]
[1748617381781,0.669,2598.6,2598.5,0.76946]
[1748617381981,0.6386,2598.9,2598.8,0.76938]
[1748617382182,0.6464,2599.1,2599.0,0.76932]
[1748617383382,0.6464,2599.1,2599.0,3.97712]
[1748617383784,0.00577501,2599.3,2599.2,0.76926]
[1748617384577,0.00577501,2599.3,2598.9,1.2888]
[1748617384779,0.76927,2599.2,2598.6,1.92358]
[1748617384980,1.32477501,2599.3,2598.7,1.9235]
[1748617385181,0.76926,2599.2,2599.1,0.76927]
[1748617385687,0.00577501,2599.3,2599.2,0.76926]
[1748617385882,0.77500501,2599.3,2599.2,0.76926]
[1748617386082,5.77500501,2599.3,2599.2,0.76926]
[1748617386287,5.00577501,2599.3,2599.2,0.76926]
[1748617386489,0.00577501,2599.3,2599.2,0.76926]
[1748617388596,3.2078,2600.1,2600.0,0.769]
[1748617388983,3.2078,2600.1,2599.6,7.2878]
[1748617389185,3.2078,2600.1,2599.8,0.76907]
[1748617389483,1.42305,2600.0,2599.8,0.76907]
[1748617389680,0.76905,2599.9,2599.8,0.76908]
[1748617390082,0.76905,2599.9,2599.7,0.00577501]
[1748617390381,0.76908,2599.8,2599.7,0.00577501]
[1748617390577,0.76907,2599.9,2599.7,0.77485501]
[1748617390781,0.76908,2599.8,2599.7,0.77485501]
[1748617390985,0.76908,2599.8,2599.7,0.00577501]
[1748617391189,5.76908,2599.8,2599.7,0.00577501]
[1748617391387,8.97688,2599.8,2599.7,0.00577501]
[1748617391787,3.2078,2599.8,2599.7,0.77488501]
[1748617391983,0.654,2600.0,2599.9,0.76905]
[1748617393189,0.65235499,2600.2,2600.1,0.76899]
[1748617393784,0.00385499,2600.2,2600.1,0.76899]
[1748617395595,0.77281499,2600.2,2600.1,0.76899]
[1748617395794,0.00385499,2600.2,2600.1,0.76899]
[1748617395982,0.00385499,2600.2,2600.0,1.2447]
[1748617396191,0.77282499,2600.2,2600.0,1.2447]
[1748617396499,0.77282499,2600.2,2600.1,0.76899]
[1748617397496,0.00385499,2600.2,2600.1,0.76899]
[1748617398088,0.00385499,2600.2,2600.1,3.97679]
[1748617399486,0.00385499,2600.2,2600.1,0.76899]
[1748617400082,0.00385499,2600.2,2600.1,3.97679]
[1748617401989,4.99e-06,2600.2,2600.1,3.97679]
[1748617402502,4.99e-06,2600.2,2600.1,8.97679]
[1748617404089,4.99e-06,2600.2,2600.1,3.97679]
[1748617404497,4.99e-06,2600.2,2600.1,8.97679]
[1748617405200,0.6315,2601.6,2601.5,0.76858]
[1748617405591,0.6315,2601.6,2601.4,3.2078]
[1748617405793,8.83741,2601.6,2601.1,0.76868]
[1748617406099,5.1238,2601.6,2601.2,0.76866]
[1748617406303,5.89236,2601.6,2601.5,0.76858]
[1748617406492,1.916,2601.6,2601.5,0.76858]
[1748617406699,0.6315,2601.6,2601.5,0.76858]
[1748617407195,0.76862,2601.4,2601.3,0.76862]
[1748617407391,1.916,2601.6,2601.3,0.76863]
[1748617407600,0.76862,2601.4,2601.3,0.76863]
[1748617407794,0.7686,2601.5,2601.4,0.76861]
[1748617407990,1.2845,2601.5,2601.4,0.76861]
[1748617408295,0.6315,2601.6,2601.5,0.76858]
[1748617408497,1.9558,2602.0,2601.9,0.76846]
[1748617408695,3.2078,2602.2,2602.1,0.76841]
[1748617409198,3.2078,2602.2,2601.8,4.4492]
[1748617409199,8.2078,2602.2,2602.0,0.76842]
[1748617409499,3.2078,2602.2,2602.1,0.7684]
[1748617409697,0.7684,2602.1,2602.0,0.76841]
[1748617409898,3.9762,2602.2,2602.0,0.76841]
[1748617410100,1.8935,2602.1,2602.0,0.76841]
[1748617410402,2.6619,2602.1,2602.0,0.76841]
[1748617410698,1.8935,2602.1,2601.8,4.4492]
[1748617410896,0.76846,2602.0,2601.8,2.00988]
[1748617411099,0.76846,2602.0,2601.9,0.76846]
[1748617411100,1.2245,2602.0,2601.9,0.76846]
[1748617411896,1.2245,2602.0,2601.8,1.2414]
[1748617411897,0.669,2602.1,2602.0,0.76843]
[1748617412297,0.76845,2602.0,2601.9,0.76845]
[1748617412500,2.08812,2602.1,2602.0,0.76843]
[1748617412800,0.76843,2602.0,2601.9,0.76844]
[1748617412997,2.03613,2602.0,2601.9,0.76844]
[1748617413198,1.2677,2602.0,2601.9,0.76844]
[1748617413398,1.3197,2602.1,2602.0,0.76843]
[1748617414197,2.0881,2602.1,2602.0,0.76843]
[1748617414398,1.3197,2602.1,2602.0,0.76843]
[1748617415008,8.24073,2602.1,2601.5,3.97637]
[1748617415207,1.2405,2602.0,2601.6,0.76855]
[1748617415503,1.2405,2602.0,2601.6,0.76853]
[1748617415691,1.92117,2601.9,2601.2,3.8492]
[1748617415897,0.76854,2601.7,2601.6,0.76854]
[1748617416097,1.2405,2601.8,2601.2,7.9232]
[1748617416306,1.2405,2601.6,2601.5,0.76857]
[1748617416499,0.76854,2601.7,2601.3,3.14379]
[1748617416696,0.76851,2601.8,2601.7,0.76852]
[1748617416896,3.16159,2602.0,2601.3,3.14379]
[1748617417205,0.76851,2601.8,2601.7,0.76851]
[1748617417907,2.00895,2602.0,2601.9,0.76846]
[1748617418299,5.29593,2602.1,2602.0,0.76843]
[1748617418500,0.76843,2602.1,2602.0,0.76843]
[1748617418696,3.2078,2602.4,2601.8,2.55882]
[1748617418902,0.76835,2602.3,2602.2,0.76836]
[1748617419208,0.76839,2602.2,2602.1,0.76838]
[1748617419411,1.39729,2602.2,2602.1,0.76838]
[1748617420507,1.3973,2602.2,2602.1,0.7684]
[1748617421502,0.6289,2602.2,2602.1,0.7684]
[1748617421697,1.39727,2602.2,2602.1,0.7684]
[1748617421898,0.76842,2602.1,2602.0,0.76842]
[1748617422313,0.76846,2601.9,2601.8,5.92938]
[1748617422508,0.76846,2602.0,2601.9,0.76844]
[1748617422707,2.65103,2602.1,2602.0,0.76843]
[1748617422907,1.8826,2602.1,2602.0,0.76843]
[1748617423212,2.651,2602.1,2602.0,0.76843]
[1748617423608,2.65102,2602.1,2602.0,0.76843]
[1748617423904,0.76846,2601.9,2601.8,5.1609]
[1748617424107,0.76846,2602.0,2601.8,5.3885]
[1748617424408,2.04626,2602.0,2601.9,0.76844]
[1748617424606,0.76846,2601.9,2601.8,6.15697]
[1748617424806,2.04625,2602.0,2601.9,0.76846]
[1748617425007,2.04626,2602.0,2601.9,0.76846]
[1748617425209,2.04626,2602.0,2601.8,0.76848]
[1748617425210,0.76848,2601.9,2601.8,0.76848]
[1748617425899,1.2778,2602.0,2601.7,4.073]
[1748617426099,0.76855,2601.6,2601.2,3.8154]
[1748617426402,1.92123,2601.8,2600.9,3.2078]
[1748617426403,0.76867,2601.2,2600.9,3.2078]
[1748617426608,0.76867,2601.2,2600.9,3.97654]
[1748617426811,0.76867,2601.2,2600.9,3.2078]
[1748617427012,0.76867,2601.2,2601.1,0.77447501]
[1748617427302,1.38423,2601.7,2601.6,0.76855]
[1748617427505,2.57668658,2601.7,2601.6,0.76855]
[1748617427705,1.2868,2601.7,2601.6,0.76855]
[1748617428108,2.05532,2601.7,2601.6,0.76855]
[1748617428306,1.2868,2601.7,2601.6,0.76855]
[1748617428608,0.76846,2601.9,2601.8,0.76849]
[1748617429110,1.9116,2602.0,2601.7,0.7685]
[1748617429111,0.7685,2601.8,2601.7,0.7685]
[1748617429304,1.2405,2601.9,2601.5,1.3021]
[1748617429502,0.76861,2601.4,2601.3,0.76861]
[1748617429699,0.76861,2601.4,2601.1,0.00577501]
[1748617429700,1.92131,2601.7,2601.1,0.00577501]
[1748617429901,0.7686,2601.5,2601.1,0.00577501]
[1748617430104,0.7686,2601.5,2601.4,0.76859]
[1748617430809,0.6092,2601.7,2601.6,0.76855]
[1748617431311,0.6711,2602.0,2601.9,0.76846]
[1748617432316,0.6711,2602.0,2601.9,2.11266]
[1748617432814,1.96392387,2602.0,2601.9,2.11266]
[1748617433208,0.6092,2602.3,2602.2,0.76837]
[1748617433410,1.90105829,2602.3,2602.2,0.76837]
[1748617433711,2.66939829,2602.3,2602.2,0.76837]
[1748617433909,1.37754,2602.3,2602.2,0.76837]
[1748617434517,2.66948484,2602.3,2602.2,0.76837]
[1748617435916,2.86138484,2602.3,2602.2,0.76837]
[1748617436915,0.76842,2602.1,2602.0,0.7684]
[1748617437111,3.2078,2602.1,2601.4,9.1993]
[1748617437314,0.76855,2601.6,2601.5,2.07398]
[1748617437614,4.48625484,2602.0,2601.5,1.3054]
[1748617437815,0.76854,2601.7,2601.6,0.76852]
[1748617438113,0.6681,2601.9,2601.5,1.3054]
[1748617438325,0.76851,2601.8,2601.7,0.76849]
[1748617438612,0.6681,2601.9,2601.8,0.76849]
[1748617439017,0.76845,2602.0,2601.9,0.76846]
[1748617439712,2.06112901,2602.0,2601.9,0.76846]
[1748617439912,0.76849,2601.8,2601.7,2.73281]
[1748617440221,0.76849,2601.8,2601.7,1.3054]
[1748617440409,0.76863,2601.3,2601.1,3.98224501]
[1748617440719,1.9648,2601.7,2601.1,3.87247501]
[1748617441020,3.2078,2601.8,2601.2,1.92166]
[1748617441218,0.76849,2601.9,2601.8,0.76845]
[1748617441821,2.06121888,2601.9,2601.8,0.76845]
[1748617442117,1.29272888,2601.9,2601.8,0.76845]
[1748617442318,2.06118888,2601.9,2601.8,0.76845]
[1748617443118,1.29272888,2601.9,2601.8,0.76845]
[1748617443420,3.2078,2602.1,2602.0,0.76843]
[1748617443624,0.7684,2602.1,2602.0,0.76843]
[1748617444318,0.76846,2602.0,2601.9,0.76844]
[1748617444717,0.76846,2601.9,2601.8,2.03219]
[1748617444916,0.76846,2601.9,2601.8,1.2637]
[1748617445122,0.76849,2601.8,2601.7,3.2078]
[1748617445424,0.76858,2601.6,2601.5,0.76856]
[1748617445716,0.76858,2601.5,2601.4,3.97639]
[1748617446021,0.76857,2601.6,2601.5,0.76854]
[1748617446223,0.76857,2601.6,2601.5,2.08834]
[1748617447223,0.6488,2602.0,2601.5,1.3198]
[1748617447422,0.76849,2601.9,2601.8,0.76846]
[1748617447731,1.41725,2602.0,2601.9,0.76846]
[1748617448220,1.41725,2602.0,2601.7,3.85868]
[1748617448221,0.76842,2602.1,2602.0,0.7684]
[1748617448421,0.76846,2601.9,2601.8,2.08248]
[1748617448629,0.76845,2602.0,2601.9,0.76842]
[1748617451022,0.76846,2601.9,2601.8,2.08247]
[1748617451424,0.76845,2602.0,2601.9,0.76842]
[1748617451619,0.76849,2601.8,2601.7,0.6176]
[1748617451924,0.76867,2601.2,2601.1,3.21357501]
[1748617452112,1.92147,2601.5,2601.1,3.98227501]
[1748617452319,0.76863,2601.4,2601.3,0.76861]
[1748617452619,2.03849,2601.5,2601.4,0.76861]
[1748617453125,0.6598,2601.5,2601.4,0.76861]
[1748617453318,0.76857,2601.6,2601.5,0.76858]
[1748617454422,1.2699,2601.8,2601.6,0.76852]
[1748617454423,0.76854,2601.7,2601.6,0.76852]
[1748617455220,2.03841,2601.8,2601.7,0.76852]
[1748617455629,1.42831,2601.8,2601.7,0.76852]
[1748617455827,3.2078,2601.9,2601.8,0.76849]
[1748617456525,0.1919,2602.3,2601.6,4.071]
[1748617456728,0.7684,2602.2,2602.1,0.76838]
[1748617457228,0.1919,2602.3,2602.2,0.76837]
[1748617457525,5.50275318,2603.2,2602.5,1.9207]
[1748617457726,0.76815,2603.0,2602.9,0.76815]
[1748617457927,0.76822,2602.8,2602.7,0.76822]
[1748617458136,0.76822,2602.8,2602.7,1.2685]
[1748617458526,0.76822,2602.8,2602.7,2.03672]
[1748617459125,0.76819,2602.9,2602.8,0.76818]
[1748617459324,0.76819,2602.9,2602.8,2.03668]
[1748617459629,0.76809,2603.2,2603.1,0.76807]
[1748617460323,5.7721,2603.5,2603.0,0.76812]
[1748617460324,0.76813,2603.1,2603.0,0.76812]
[1748617460532,0.76806,2603.3,2603.2,0.76805]
[1748617460830,0.76803,2603.4,2603.3,0.76802]
[1748617461026,1.271,2603.8,2603.2,1.2905]
[1748617461221,11.49234318,2604.1,2603.2,1.2905]
[1748617461222,0.76793,2603.7,2603.6,0.76794]
[1748617461421,1.2673,2604.0,2603.7,0.76791]
[1748617461618,0.76788,2603.9,2603.8,0.76789]
[1748617462024,0.76796,2603.6,2603.5,0.76799]
[1748617462326,0.76793,2603.7,2603.6,0.76793]
[1748617462529,0.76797,2603.6,2603.5,0.76797]
[1748617462729,5.0,2603.6,2602.5,7.2778]
[1748617462928,4.07,2603.7,2602.7,0.6176]
[1748617462929,3.2078,2603.1,2602.7,0.6176]
[1748617463125,3.2078,2603.1,2602.9,0.76815]
[1748617463327,1.9202,2603.2,2602.7,0.6176]
[1748617463527,0.76816,2602.9,2602.7,0.6176]
[1748617463726,0.76816,2602.9,2602.8,1.40379]
[1748617464029,0.76813,2603.1,2602.7,0.6176]
[1748617464235,0.76818,2602.9,2602.8,0.76816]
[1748617464629,0.76816,2603.0,2602.9,0.76815]
[1748617464934,0.76812,2603.1,2603.0,0.76811]
[1748617466332,0.76816,2603.0,2602.9,0.76815]
[1748617467029,0.76814,2603.1,2603.0,0.76812]
[1748617467334,0.76816,2603.0,2602.9,0.76815]
[1748617467728,0.76822,2602.7,2602.6,0.00576369]
[1748617467927,1.92043,2602.9,2602.7,0.7682]
[1748617467928,0.76822,2602.8,2602.7,0.7682]
[1748617468134,0.76814,2603.1,2603.0,0.76811]
[1748617470336,0.76816,2603.0,2602.9,0.76814]
[1748617470537,0.76811,2603.2,2603.1,0.76808]
[1748617470739,0.76815,2603.1,2603.0,0.76812]
[1748617471238,4.61626,2603.3,2603.2,0.76808]
[1748617471437,3.2078,2603.3,2603.2,0.76808]
[1748617471635,0.76801,2603.5,2603.2,3.2078]
[1748617471833,0.76801,2603.5,2603.4,0.76802]
[1748617472030,0.76799,2603.6,2603.5,0.76796]
[1748617473036,0.76796,2603.7,2603.6,0.76794]
[1748617474133,2.5378,2603.9,2603.5,0.76797]
[1748617474341,0.76796,2603.7,2603.6,0.76793]
[1748617475036,1.9199,2603.6,2603.1,4.066]
[1748617475343,0.76815,2603.1,2603.0,0.76811]
[1748617476242,1.38197,2603.3,2603.2,0.76808]
[1748617477439,0.7681,2603.2,2603.1,0.76808]
[1748617478240,0.76814,2603.1,2603.0,0.76811]
[1748617479441,0.6139,2603.3,2602.9,1.92041]
[1748617479632,1.38198,2603.3,2603.2,0.76808]
[1748617480037,0.76812,2603.2,2603.1,0.76809]
[1748617480439,0.6139,2603.3,2603.0,0.76812]
[1748617480638,0.6139,2603.3,2602.8,3.2078]
[1748617480639,0.7681,2603.1,2602.9,0.76814]
[1748617480941,0.76808,2603.2,2603.0,0.76812]
[1748617481641,1.38195,2603.3,2602.8,3.2078]
[1748617481847,3.87,2603.5,2603.2,0.76807]
[1748617482144,0.76804,2603.3,2603.2,0.76807]
[1748617482345,0.76808,2603.2,2603.0,1.43221]
[1748617482546,0.76806,2603.3,2603.0,0.6641]
[1748617482742,3.87,2603.5,2603.2,0.76807]
[1748617482743,0.76803,2603.4,2603.2,0.76807]
[1748617482950,0.76801,2603.4,2603.3,1.99423]
[1748617483136,0.76801,2603.4,2603.3,1.2262]
[1748617484245,0.76804,2603.3,2603.2,0.6706]
[1748617485350,0.76804,2603.3,2603.2,1.9112]
[1748617486450,0.76804,2603.3,2603.2,2.67927]
[1748617486644,0.76804,2603.3,2603.2,1.9112]
[1748617486850,0.76804,2603.3,2603.2,2.00867]
[1748617487153,0.76804,2603.3,2603.2,2.00865]
[1748617487350,0.76804,2603.3,2603.2,1.2406]
[1748617487945,0.76804,2603.3,2603.2,2.00867]
[1748617488151,0.76804,2603.3,2603.2,1.2406]
[1748617488453,0.76804,2603.3,2603.2,2.00867]
[1748617488947,0.76804,2603.3,2603.2,1.2406]
[1748617489451,0.76804,2603.3,2603.2,2.00867]
[1748617490052,0.76802,2603.4,2603.3,0.76803]
[1748617490247,0.76804,2603.3,2603.2,2.00865]
[1748617490756,0.76802,2603.4,2603.3,0.76803]
[1748617490948,0.76802,2603.4,2603.3,1.3188]
[1748617492051,0.76802,2603.4,2603.3,2.08684]
[1748617492350,0.76798,2603.5,2603.4,0.768]
[1748617492554,0.6457,2603.6,2603.3,1.3188]
[1748617492859,0.76798,2603.5,2603.4,0.76801]
[1748617493057,0.76798,2603.5,2603.4,1.43601]
[1748617493271,0.76798,2603.5,2603.4,0.668]
[1748617493457,0.76798,2603.5,2603.4,1.43601]
[1748617494364,0.76797,2603.6,2603.5,0.76796]
[1748617494663,0.76794,2603.7,2603.5,1.257]
[1748617494962,1.9194,2604.3,2604.0,0.76782]
[1748617495253,15.07507,2604.5,2603.9,3.02166369]
[1748617495254,0.7678,2604.2,2603.9,3.02166369]
[1748617495458,5.12703,2604.5,2604.0,1.9119]
[1748617495659,0.76777,2604.2,2604.1,0.7678]
[1748617496262,0.00572597,2604.4,2604.0,1.42271]
[1748617496463,0.00572597,2604.4,2604.0,0.6549]
[1748617496968,0.00572597,2604.4,2604.3,0.76774]
[1748617497169,0.00572597,2604.4,2604.0,0.6549]
[1748617497367,0.00572597,2604.4,2604.2,3.2078]
[1748617497667,0.00572597,2604.4,2604.3,0.76774]
[1748617497863,0.00572597,2604.4,2604.3,4.82874]
[1748617498164,0.00572597,2604.4,2604.3,5.46214]
[1748617498564,3.2078,2604.8,2604.3,5.46214]
[1748617498565,3.2078,2604.8,2604.7,0.76762]
[1748617498762,3.2078,2604.8,2604.3,0.6334]